{"text_format":"1","workbook":"xlsx","n_sheets":3,"sheets":["SPVS archived","SPVs to be investigated","Original List"],"not_rendered":{"charts":0,"images":0,"macros":0,"external_links":0,"defined_names":0,"comments":0,"pivot_tables":0},"unopened":[],"bounds":{"document_bytes":16777216,"sheet_cells":100000,"rows_first":2000,"rows_last":500,"rows_between":2000,"halvings":0,"cell_chars":16384,"cell_head_chars":4096},"cells_cut":0,"cells_raw":0,"read":"whole","date_system":"1900"}

{"sheet":"SPVS archived","index":0,"n_rows":68,"n_cols":5,"rows_kept":68,"cut":false,"hidden":false,"merged":[[0,0,0,1],[14,4,15,4]]}
["SPVs to be archived",null,"SPV #","Date archived","Comments"]
[]
[1,"Producing Base Aggregate Dense 3/4 -Inch & 3-Inch","ner 305-015","2018-09-17"]
[{"$f":"A3+1","v":2},"Pulverize and Relay","ner 325-005","2018-09-17"]
[{"$f":"A4+1","v":3},"Concrete Aggregate","ner 501-005","2018-09-17"]
[4,"Grogrid Reinforcement","ner 645-005","2018-09-17"]
[5,"Sub Ballast","ner 301-010","2019-07-24","not recently used"]
[6,"SHES Reinforced Concrete Panels","ner 415-020","2018-09-17"]
[7,"Concrete Joint Sealing","ner 415-035","2018-09-17"]
[8,"Temporary Inlet Grates","ner 520-025","2018-09-17"]
[9,"Moving Apron Endwalls","ner 522-005","2018-09-17"]
[10,"Existing Storm Sewer Locate","ner 608-005","2018-09-17"]
[11,"Slotted Vane Drain (Type) (Length)","ner 611-070","2018-09-17"]
[12,"Prefabricated Drainage Sheet","ner 645-020","2018-09-17"]
[13,"Resetting Culvert Pipe Joints","ner 520-010","2018-09-17","Use Standard Spec 524 + Grading Shaping and Finishing Culverts and End Walls"]
[14,"Resetting Pipe Ends","ner 520-015","2018-09-17"]
[15,"Adjusting Covers Resurfacing","ner 611-005","2019-07-23","Use ner 611-020 or 611-040 want to track costs that is why we are not using the modification to bid item"]
[16,"Subsoiling","ner 200-005","2019-07-24"]
[17,"Manhole Covers Bolted","ner 611-045","2019-07-24","not recently used"]
[18,"Inlet Covers Bolted","ner 611-025","2019-07-24","not recently used"]
[19,"Biofilter Gravel","ner 628-005","2018-09-17"]
[20,"Biofilter Plant","ner 628-010","2018-09-17"]
[21,"Boulders","ner 628-015","2018-09-17"]
[22,"Engineered Soils","ner 628-030","2018-09-17"]
[23,"Erosion Control, Winterization","ner 628-035","2018-09-17"]
[24,"Flocculent","ner 628-040","2018-09-17"]
[25,"Permanent Stone Ditch Checks","ner 628-045","2018-09-17"]
[26,"Pipe PVC Underdrain (inch)","ner 628-050","2018-09-17"]
[27,"Temproary Sediment Basin Outlet","ner 628-065","2018-09-17"]
[28,"Vegetated Porous Pavement System","ner 628-075","2018-09-17"]
[29,"Geotextile Fabric Type FF","ner 645-010","2018-09-17"]
[30,"Diversion Channel","ner 628-025","2018-09-17"]
[31,"Seismograph Vibration Monitoring","ner 107-115","2019-07-24","Use STSP 999-005 and/or 999.100.S - for use on urban reconstruct projects where contractor activies may disturb nearby structures"]
[32,"Grading, Shaping and Finishing Driveway Culvert Extensions","ner 205-015","2018-09-17"]
[33,"Test Rolling","ner 205-020","2018-09-17"]
[34,"Hauling and Placing Base Aggregate Dense 3/4-inch & 1 1/4-In","ner 305-010","2019-07-24","If need update to current needs but this is not a SPV we want to use unless necessary. "]
[35,"Borrow","ner 208-005","2019-07-24","Included in Embankment SPV "]
[36,"Coarse Aggregate Special","ner 305-005","2018-09-17"]
[37,"Shredded Hardwood Bulk Mulch","ner 627-010","2018-09-17"]
[38,"Furnishing and Planting Plant Materials","ner 632-005","2018-09-17"]
[39,"Planting Mix (Pay Plan Quantity)","ner 632-015","2018-09-17"]
[40,"Shoulder Widening Special","ner 305-020","2018-09-17"]
[41,"Keystone Modular Block Wall","ner 504-010","2018-09-17"]
[42,"Temporary Shoring","ner 511-005","2018-09-17"]
[43,"Railing Steel (Type) Galvanized, (Structure)","ner 513-005","2018-09-17"]
[44,"Vehicular Video Detection System","ner 643-075","2018-09-17"]
[45,"Fence Chain Lenk Vinyl Coated (Height)","ner 616-005","2019-07-24","not recently used"]
[46,"Removing Concrete Surface Milling","ner 204-015","2018-09-17"]
[47,"Removing Fence","ner 204-025","2018-09-17"]
[48,"Removing Guardrail","ner 204-030","2018-09-17"]
[49,"Removing Median Crossover","ner 204-035","2018-09-17"]
[50,"Removing Old Structure with Minimal Debris","ner 203-005","2019-07-24","DNR/RECs are coming up with different requirements"]
[51,"Special Sign Post and V-Lok Channel","ner 634-005","2018-09-17"]
[52,"Construction Staking Biofilter","ner 650-005","2018-09-17"]
[53,"Construction Staking Fence Layout","ner 650-010","2018-09-17"]
[54,"Construction Staking Noise Barrier","ner 650-015","2018-09-17"]
[55,"Wall Concrete Panel Mechanically Stablized Earth LRFD QMP Pilot","ner 504-015","2018-09-17"]
[56,"Wall Wire Faced Mechanically Stabilized Earth LRFD QMP Pilot","ner 504-020","2018-09-17"]
[57,"Height Modernization Stations","ner 621-005","2018-09-17"]
[58,"Barricade Racks","ner 643-005","2018-09-17"]
[59,"Opening Roundabout","ner 643-025","2018-09-17"]
[60,"PCMS Cellular Communications","ner 643-030","2018-09-17"]
[61,"Portable Intelligent Transportation System","ner 643-040","2018-09-17"]
[62,"Truck Mounted Attenuator","ner 643-070","2018-09-17"]
[63,"Terminal 4-Strand HT Cable Guard","ner 643-060 ","2019-07-24","use stsp 613-010"]
[64,"HMA Aggregate","ner 460-005","2019-07-24","Pavement Engineer stated this is now in the Standard Spec and is no longer needed."]
[65,"Removing Ride Quality","ner 440-005","2019-07-24","recoded to be ner -740-005"]
[66,"Environmental Protection - Emerald Ash Borer","ner 107-045","2019-07-24","new DNR/Fed requirements makes this manditory on all projects"]

{"sheet":"SPVs to be investigated","index":1,"n_rows":9,"n_cols":4,"rows_kept":9,"cut":false,"hidden":true,"merged":[[0,0,0,3]]}
["SPVs needing further review "]
[]
[8,"Smooth Steel Casing Pipe (Inch)","ner 520-020"]
[20,"Baseline CPM Progress Schedule","ner 108-005","*This needs to be broken into 2 documents"]
[21,"Embankment Construction -Benching","ner 207-005"]
[22,"Contaminate Soil Management","ner 107-025"]
[23,"Low Permeable Trench Plugs","ner 107-090"]
[24,"Temporary Crosswalk Access","ner 644-005"]
[25,"Removing Cable Barrier","ner 204-010"]

{"sheet":"Original List","index":2,"n_rows":195,"n_cols":8,"rows_kept":195,"cut":false,"hidden":true,"merged":[[0,0,0,4]]}
["Northeast Region Special Provisions\nTable of Contents",null,null,null,null,null,null,"2018-09-17"]
["FOLDER","TITLE","NOTES","DOWNLOAD","UPDATED"]
["Agg Bases","Limestone Screenings 0.375-Inch","Use TRAFFIC BOND LIMESTONE 3/8-INCH special provision unless trail owner (County, DNR, etc) requests this mix gradation. This is NOT the preferred mix.\r\n","ner-301-005",20110929,1]
["Agg Bases","Sub-Ballast","Contractor constructed sub-ballast system. Coordinate with Railroad Coordinator for applicable use.\r\n","ner-301-010",20110127,{"$f":"F3+1","v":2}]
["Agg Bases","Traffic Bond Limestone 3/8-Inch","Used this preferred mix gradation for recreational trails unless the trail owner (County, DNR, etc) requests a specific gradation.\r\n","ner-301-015",20110929,{"$f":"F4+1","v":3}]
["Agg Bases","Hauling and Placing Base Aggregate Dense ¾-inch and 1¼-inch","Use if Municipality/County will be providing material for the contractor.\r\n","ner-305-010",20110127,4]
["Agg Bases","Producing Base Aggregate Dense ¾-Inch and 3-Inch ","Use if Contractor is only producing material. Haul and placement by Municipality/County.\r\n","ner-305-015",20110127,5]
["Agg Bases","Pulverize and Relay","Allows the use of manual controls if automatic controls break and specifies type of vibratory rollers used for lifts greater than 8 inches.\r\n","ner-325-005",20110127,6]
["Agg Bases","Concrete Aggregate","Coordinate with Materials Engineer. Verify that Community accepts reduced maximum chert percentage.\r\n","ner-501-005",20110127,7]
["Agg Bases","Geogrid Reinforcement","Coordinate with Soils Engineer for applicable use. Article will need to be modified for project specific parameters.\r\n","ner-645-005",20110127,8]
["Asphalt","HMA Aggregate","Gradation requirements for lower layers less than 2 1/4\".\r\n","ner-460-005",20110127,9]
["Asphalt","Sealing Asphaltic Pavement Cracks","Verify/revise oil specifications and unit of payment before using.\r\n","ner-460-010",20110128,10]
["Concrete","Concrete Pavement, Cold Weather Covering (type)","For late season paving where the Contractor was forced.  This item pays for the items that would normally be incidental for appropriate pricing. Include the type of covering in the item name (Plastic 1 layer, plastic 2 layers, plastic/hay/plastic or blanket, etc).\r\n","ner-415-005",20110214,11]
["Concrete","Cross Stitching Longitudinal Cracks","Coordinate with Pavement Engineer for use.\r\n","ner-415-010",20110127,12]
["Concrete","Protection of Concrete","Used especially in urban projects.\r\n","ner-415-015",20110127,13]
["Concrete","SHES Reinforced Concrete Panels",null,"ner-415-020",20110127,14]
["Concrete","Concrete Joint and Crack Cleaning","Coordinate with Pavement Engineer for use.\r\n","ner-415-030",20110127,15]
["Concrete","Concrete Joint Sealing","Do not use unless the municipality requests. Coordinate with project manager.\r\n","ner-415-035",20170412,16]
["Concrete","SHES Concrete Pavement Approach Slab",null,"ner-416-005",20110127,17]
["Concrete","Concrete Curb and Gutter 30-Inch HES Type A","Use if HES concrete is needed through driveway.\r\n","ner-601-005",20110127,18]
["Concrete","Concrete Curb and Gutter 4 Inch Sloped 30 Inch Type G Special","Use along OSOW routes where there will be vehicle over tracking of curb and gutter. Include construction detail in plan.\r\n","ner-601-010",20110311,19]
["Concrete","Concrete Curb and Gutter, Cold Weather Covering (Type)","For late season paving where the Contractor was forced. This item pays for the items that would normally be incidental for appropriate pricing. Include the type of covering in the item name (Plastic 1 layer, plastic 2 layers, plastic/hay/plastic or blanket, etc).\r\n","ner-601-015",20110214,20]
["Concrete","Concrete Landscaping Curb",null,"ner-601-020",20110208,21]
["Concrete","Concrete Sidewalk, California Picture Frame,(Inch)",null,"ner-602-005",20110127,22]
["Drainage","Subsoiling",null,"ner-200-005",20110128,23]
["Drainage","Temporary Bypass (Structure)","Requires the Contractor to propose the method of temporary bypass. Coordinate with storm water engineer before using.\r\n","ner-210-005",20110128,24]
["Drainage","Temporary Bypass Channel (Structure)","Use this when there is a detail in the plan for the bypass. Coordinate with storm water engineer before using.\r\n","ner-210-010",20110128,25]
["Drainage","Temporary Slope Drain","For use during construction before installation of permanent drains at bridge structures.\r\n","ner-210-015",20110127,26]
["Drainage","Concrete Masonry Endwalls","Requires contractor to complete installation of endwalls within 7 calendar days of installing culvert pipe or box culvert.\r\n","ner-504-005",20120207,27]
["Drainage","Culvert Pipe Concrete Collar SHES","Use this article with the NER construction detail for Culvert Pipe Concrete Collar only if SHES is necessary. If SHES not necessary use item 520.8000 Concrete Collars for Pipe.\r\n","ner-520-005",20130613,28]
["Drainage","Resetting Culvert Pipe Joints",null,"ner-520-010",20110128,29]
["Drainage","Resetting Pipe Ends","Consider using standard bid item 609.0100.XX Relaid Storm Sewer Pipe (size) instead of this SPV.\r\n","ner-520-015",20110128,30]
["Drainage","Smooth Steel Casing Pipe (Inch)",null,"ner-520-020",20110128,31]
["Drainage","Temporary Inlet Grates","Include detail in plan.\r\n","ner-520-025",20110128,32]
["Drainage","Moving Apron Endwalls","This item is typically not used. Consider using new apron endwalls.\r\n","ner-522-005",20110128,33]
["Drainage","Existing Storm Sewer Locate","Requires the contractor to locate existing storm sewer at specific locations prior to construction.\r\n","ner-608-005",20110128,34]
["Drainage","Marker Balls","Coordinate with Municipality for use.\r\n","ner-608-010",20110127,35]
["Drainage","Mini Storm Sewer and Laterals (Inch)",null,"ner-608-015",20110214,36]
["Drainage","Mini Storm Sewer Cleanouts",null,"ner-608-020",20110214,37]
["Drainage","Reconnect Existing Storm Sewer Lateral",null,"ner-608-025",20130813,38]
["Drainage","Storm Sewer Pipe Reinforced Concrete (Class) (Inch) Jacked","Modify for appropriate class, size and location information.\r\n","ner-608-030",20110128,39]
["Drainage","Storm Sewer Plug","Use this for storm sewer plugs required for temporary extensions, staged construction, etc.\r\n","ner-608-035",20110217,40]
["Drainage","Storm Sewer Tap",null,"ner-608-040",20141120,41]
["Drainage","Storm Sewer Tee (Inch) x (Inch)",null,"ner-608-045",20141120,42]
["Drainage","Adjusting Covers Resurfacing","Use this SPV when a resurfacing project requires the same type of adjustment for all covers. This spec calls for adjustment castings to be used project wide. Use the bid item SPVs (Manhole Adjustment Castings, Inlet Adjustment Castings) when specifying each adjustment separately.\r\n","ner-611-005",20141103,43]
["Drainage","Adjusting Manhole Covers with Rubber Rings",null,"ner-611-010",20140807,44]
["Drainage","Cover Plates","Use this article for cover plates to remain in place.\r\n","ner-611-015",20130507,45]
["Drainage","Inlet Adjustment Castings","This SPV is to be used on resurfacing projects where the overlay would fill in a portion of the existing gutter pan. Inlet grate riser is used to raise inlets to the height of the new asphalt pavement. See PDS Resource Library, Design/Drainage/Storm Sewer Design/Inlet Grate Risers for more information on this SPV.\r\n","ner-611-020",20141103,46]
["Drainage","Inlet Covers Bolted","This SPV is for use when inlets are within the vehicle wheel path during staged construction.\r\n","ner-611-025",20140605,47]
["Drainage","Inlet Type 2 Special","Use this item for inlets in circulating roadway of roundabouts and other locations where there is a possibility of traffic running over the inlet grates. This item requires rubberized adjusting rings. Include construction detail in plans.\r\n","ner-611-030",20110127,48]
["Drainage","Manhole (Size)","Item requires the use of only precast sections.\r\n","ner-611-035",20141120,49]
["Drainage","Manhole Adjustment Castings","This SPV is to be used on resurfacing projects where the overlay would raise the finished surface of the roadway causing the existing manhole covers to be too low. Manhole grate riser is used to raise manholes to the height of the new asphalt pavement. See PDS Resource Library, Design/Drainage/Storm Sewer Design/Inlet Grate Risers for more information on this SPV.\r\n","ner-611-040",20141103,50]
["Drainage","Manhole Covers Bolted","This SPV is for use when manholes are within the vehicle wheel path during staged construction.\r\n","ner-611-045",20141117,51]
["Drainage","Manhole, Inlet and Catch Basin Adjusting Rings","Use on all projects requiring structure adjustments. Use Inlet Type 2 Special SPV and construction detail when rubber rings are required at roundabouts or other vehicle tracking locations.\r\n","ner-611-050",20170206,52]
["Drainage","Reconditioning Inlets","Use in locations where only the adjustment rings need repair. Contact Maintenance before using.\r\n","ner-611-055",20110127,53]
["Drainage","Reconditioning Manholes","Use in locations where only the adjustment rings need repair. Contact Maintenance before using.\r\n","ner-611-060",20110127,54]
["Drainage","Repairing Slotted Vane Drain",null,"ner-611-065",20110128,55]
["Drainage","Slotted Vane Drain (Type) (Length)","Modify dimensions and types as required. Use of construction detail required.\r\n","ner-611-070",20110127,56]
["Drainage","Salvaged Pipe Underdrain Endwalls","Requires stockpiling of endwalls to be picked up by Municipality\r\n","ner-612-005",20110128,57]
["Drainage","Temporary Pipe Underdrain Connections","Used under temporary crossovers.\r\n","ner-612-010",20110128,58]
["Drainage","Clay Liner Pond (Location)","Coordinate with Geotechnical Engineer for requirements and use.\r\n","ner-628-020",20110208,59]
["Drainage","Weir Plate","Used at wetland mitigation site. Verify detail are applicable.\r\n","ner-628-080",20110128,60]
["Drainage","Prefabricated Drainage Sheet","Coordinate with Central Office Bridge Section before using.\r\n","ner-645-020",20110128,61]
["Environmental","Archaeological Coordination","Contact Environmental Coordinator for project specific information. Modify highlighted text as needed to fit project needs. Language for work within boundary of burial site or on site monitoring may or may not be needed based on project impacts and commitments made.\r\n","ner-107-005",20150122,62]
["Environmental","Archaeological Survey Coordination (increased effort)","Use this article to fulfill corridor commitments with Native American tribes. This article requires increased survey effort for lake areas or other areas designated by the Department required increased survey effort. Consult with Region PM for use of this article.\r\n","ner-107-010",20130507,63]
["Environmental","Archaeology",null,"ner-107-015",20110127,64]
["Environmental","Borrow Pit Archaeological Study","Requires Department to perform archeological study of borrow pit sites. Contact Environmental.\r\n","ner-107-020",20110127,65]
["Environmental","Enviromental Protection, Decontamination of Construction Equipment","Contact Environmental Coordinator. Use this as a template regardless of the type of contaminate in the soil.\r\n","ner-107-030",20110608,66]
["Environmental","Environmental Protection - bypass pumping",null,"ner-107-035",20110711,{"$f":"F68+1","v":67}]
["Environmental","Environmental Protection - dewatering","Should be used if dewatering is anticipated anywhere within the project.\r\n","ner-107-040",20121010,68]
["Environmental","Environmental Protection - Emerald Ash Borer","Contact Environmental Coordinator prior to use to ensure directives are up to date. This is to be included on projects wtihin Brown, Sheboygan and Fond du Lac counties AND only if the contract includes clearing and grubbing.\r\n","ner-107-045",20110308,69]
["Environmental","Environmental Protection - Historic Property","Highlight for reference only.\r\n","ner-107-050",20110127,70]
["Environmental","Environmental Protection Non-Aquatic Invasive Species Plants","Contact Environmental Coordinator before using this article.\r\n","ner-107-055",20170806,71]
["Environmental","Environmental Protection Phragmities","Contact Environmental Coordinator before using this article.\r\n","ner-107-060",20121003,72]
["Environmental","Environmental Protection, Artesian Spring","Contact Environmental Coordinator for informaiton.\r\n","ner-107-065",20110127,73]
["Environmental","Environmental Protection,(Amphibian or Reptile Species)","See attached Amphibian and Reptile exclusion fencing protocols(Feb 2009) for guidance on fence requirements. Contact Environmental Coordinator before using.\r\n","ner-107-070",20110127,74]
["Environmental","Excavation of Phragmites Soil (Dept determines waste site)","Use this article when the Department determines a designated waste site. Requires the use of STSP 107-055.\r\n","ner-107-075",20110202,75]
["Environmental","Excavation of Phragmites Soil (waste designated on site)","Use this article when an on-site waste site has been designated in the plans. Requires the use of STSP 107-055.\r\n","ner-107-080",20110202,76]
["Environmental","Health and Safety Requirements for Workers Removing Contaminated River Sediment","Follows the procedure set forth in STSP 107-115 and requires submission of site specific safety plan prior to pre-con. Contact Environmental Coordinator before use.\r\n","ner-107-085",20110202,77]
["Environmental","Seismograph_Vibration Monitoring","For use on urban reconstruct projects where contractor activities may disturb nearby structures.\r\n","ner-107-115",20141209,78]
["Erosion Control","Biofilter Gravel","Coordinate with Storm Water Engineer before using.\r\n","ner-628-005",20080523,79]
["Erosion Control","Biofilter Plant","Coordinate with Storm Water Engineer before using.\r\n","ner-628-010",20080523,80]
["Erosion Control","Boulders","Coordinate with Storm Water Engineer before using.\r\n","ner-628-015",20060111,81]
["Erosion Control","Diversion Channel","Coordinate with Storm Water Engineer before using.\r\n","ner-628-025",20060111,82]
["Erosion Control","Engineered Soil","Use for soil bed for biofiltration practices. Contact Storm Water Engineer before using.\r\n","ner-628-030",20110127,83]
["Erosion Control","Erosion Control, Winterization","Use only if project is going to span over multiple years. Coordinate with Storm Water Engineer before using.\r\n","ner-628-035",20060118,84]
["Erosion Control","Flocculent","Coordinate with Storm Water Engineer before using.\r\n","ner-628-040",20100617,85]
["Erosion Control","Permanent Stone Ditch Checks","This item covers the cleaning and maintenance of ditch checks. Coordinate with Storm Water Engineer before using.\r\n","ner-628-045",20100523,86]
["Erosion Control","Pipe PVC Underdrain (Inch)","For use in Biofiltration Systems. Coordinate with Storm Water Engineer before using.\r\n","ner-628-050",20110128,87]
["Erosion Control","Sedimentation Basin","State specification locations where sedimentation basins are anticipated / required. Coordinate with Storm Water Engineer before using.\r\n","ner-628-055",20110711,88]
["Erosion Control","Street Sweeping",null,"ner-628-060",20110602,89]
["Erosion Control","Temporary Sediment Basin Outlet","Used for Biofiltration Devices only. Contact Storm Water Engineer before using.\r\n","ner-628-065",20110127,90]
["Erosion Control","Temporary Stone Ditch Checks","Item covers the cleaning and maintenance during use. Coordinate with Storm Water Engineer before using.\r\n","ner-628-070",20141104,91]
["Erosion Control","Vegetated Porous Pavement System",null,"ner-628-075",20110127,92]
["Erosion Control","Geotextile Fabric Type FF","Coordinate with Storm Water Engineer before using.\r\n","ner-645-010",20080205,93]
["General","Information to Bidders - FAA Determination of Obstruction","Revise information accordingly.\n","ner-102-005",20110202,94]
["General","Mandatory Pre-Bid Meeting",null,"ner-102-010",20110202,95]
["General","Coordination with Businesses","Generally choose the contractor will arrange and the contractor will notify the parties of the meeting.\r\nWhen choosing the time frame before start of work consider when the project was let and when it is anticipated to be started to ensure there is enough time left after the first meeting is held to complete the contract within the requirements of the contract (i.e. completion date contracts and/or contracts with interim completion dates and interim liquidated damages).\r\nFrequency of meetings – consider how the project is to be built (staged or closed to traffic), the number of businesses and the impacts to their access and when or if changes to their access will occur during construction for the delivery of goods and customer access. Large projects may require weekly meetings. Others where access routes don’t change for weeks – one or two meetings per month may be sufficient.\r\n","ner-105-005",20121003,96]
["General","Baseline CPM Progress Schedule","Use this only if a contract requires the use of Primavera software during construction.\r\n","ner-108-005",20110202,97]
["General","Prosecution and Progress - Nighttime work requiring working day definition changes","For use only on projects where the majority of the work is expected to be done at night due to operational restrictions on when lanes can be closed. See extensive Designer Notes.\r\n","ner-108-010",20110325,98]
["General","Removing Ride Quality",null,"ner-440-005",null,99]
["Grading","Grading and Shaping Ditch","If there are no landscaping items in the contract they need to be added as incidental to this item of work. Add FINISHING to the title of the bid item if these items are added.\r\n","ner-205-005",20110201,100]
["Grading","Grading, Shaping, and Finishing Cross Culverts",null,"ner-205-010",20110201,101]
["Grading","Grading, Shaping and Finishing Driveway Culvert Extensions",null,"ner-205-015",20110201,102]
["Grading","Test Rolling","Coordinate with Soils Engineer before using.\r\n","ner-205-020",20110127,103]
["Grading","Embankment Construction - Benching","Coordinate with Soils Engineer before using.\r\n","ner-207-005",20110127,104]
["Grading","Embankment Construction - Moisture Content","Coordinate with Soils Engineer before using.\r\n","ner-207-010",20110127,105]
["Grading","Borrow","For use only on projects that will be paying for earthwork in place under the roadway embankment item.\r\n","ner-208-005",20130507,106]
["Grading","Select Borrow","Coordinate with Soils Engineer before using\r\n","ner-208-010",20160107,107]
["Grading","Preparing Foundation","Insert into all contracts with roadway foundation preparation\r\n","ner-211-005",20130507,108]
["Haz Mat","Contaminated Soil Management","Contact Environmental Coordinator. Use this as a template regardless of the type of contaminate in the soil.\r\n","ner-107-025",20110127,109]
["Haz Mat","Low Permeable Trench Plugs","Contact Environmental Coordinator. Use this as a template regardless of the type of contaminate in the soil.\r\n","ner-107-090",20110127,110]
["Haz Mat","Management of Petroleum Contaminated Groundwater","Use when discharging to municipal sanitary sewer system.\r\n","ner-107-095",20110127,111]
["Haz Mat","Management of Petroleum Contaminated Water","Contractor use of municipal sewer system is preferred. Use this article only if that is not an option. Contact Environmental Coordinator.\r\n","ner-107-100",20110127,112]
["Haz Mat","Off-Site Treatment or Disposal, Off-Site Stockpiling at Land Spreading Site","Directs Contractor to specific land spread site. Does not allow optional locations.\r\n","ner-107-105",20110127,113]
["Haz Mat","River Sediment Disposal","Contact Environmental Coordinator for review of this article before use.\r\n","ner-107-110",20110127,114]
["Landscaping","Coarse Aggregate Special","Roundabout specific appliction.\r\n","ner-305-005",20110127,115]
["Landscaping","Mulch Mississippi River Gravel","Coordinate with Landscape designer.\r\n","ner-627-005",20110208,116]
["Landscaping","Low Maintenance Seed Mix","“No-Mow” seed comes in two different mixes, one with rye and one without. Rye is added to provide rapid soil stability for seeding steep slopes and erosion prone sites.\r\n","ner-630-005",20141103,117]
["Landscaping","Water for Seeded Areas","Place on urban projects or those with sensitive resources that require immediate growth. Coordinate use with NE Region Stormwater Engineer.\r\n","ner-630-010",20121010,118]
["Landscaping","Furnishing and Planting Plant Materials","Use this article for various plant material requirements and to modify standard specifications with a one-year proving period. Coordinate with Landscape designer for any additional modifications to Section 632.\r\n","ner-632-005",20110523,119]
["Landscaping","Perennials (Type) (Size)","Use for perennials within roundabout or other landscaping areas. Coordinate use with Landscape designer.\r\n","ner-632-010",20110208,120]
["Landscaping","Planting Mix (PAY PLAN QUANTITY)","Material and Construction specifications should be coordinate with the Landscape designer. This article is an example where Measurement and Payment is Pay Plan Quantity.\r\n","ner-632-015",20110208,121]
["Landscaping","Planting Mixture (UNIT PRICE)","Material and Construction specifications should be coordinate with the Landscape designer. This article is an example where Measurement and Payment is by Unit Price.\r\n","ner-632-020",20110208,122]
["Landscaping","Landscape Edging","Coordinate with Landscape designer.\r\n","ner-645-015",20110208,123]
["Misc_Con","Breaking Concrete Surface Drains","Discuss with PM before using.\r\n","ner-204-005",20110202,124]
["Misc_Con","Flowable Fill Material",null,"ner-300-005",20121003,125]
["Misc_Con","Shoulder Widening Special","This article provides for payment of all items necessary to perform this work under one bid item.\r\n","ner-305-020",null,126]
["Misc_Con","Slot-Stitching","Method of pavement repair. Coordinate with Maintenance Section and Pavement Engineer.\r\n","ner-415-025",20110127,127]
["Misc_Con","Keystone Modular Block Wall",null,"ner-504-010",20110202,128]
["Misc_Con","Temporary Shoring",null,"ner-511-005",20110202,129]
["Misc_Con","Temporary Shoring Railroad",null,"ner-511-010",20110202,130]
["Misc_Con","Railing Steel (Type) Galvanized, (Structure)","Modify for appropriate steel type and structure number. Only include two coat paint system language if galvanized surface requires painting.\r\n","ner-513-005",null,{"$f":"F132+1","v":131}]
["Misc_Con","Midwest Guardrail System (steel posts)","This article requires the use of steel posts instead of wood posts.\r\n","ner-614-005",20110223,132]
["Misc_Con","Steel Plate Beam Guard Class A (steel posts)","This article requires the use of steel posts instead of wood posts.\r\n","ner-614-015",20110223,133]
["Misc_Con","Fence Chain Link Vinyl Coated (Height)",null,"ner-616-005",20110202,134]
["Misc_Con","Property and Right-of-Way Fence","This SPV is applicable prior to December 2013 LET. This new revision should be in the 2014 Standard Spec.\r\n","ner-616-010",20121030,135]
["Misc_Con","Replacing Fence Posts",null,"ner-616-015",20110202,136]
["Misc_Con","Vehicular Video Detection System",null,"ner-643-075",20110202,137]
["Misc_Con","Temporary Crosswalk Access","Insert this provision when temporary crosswalk access needs to be maintained during construction. Designer may also want to include a construction detail showing these locations.\r\n","ner-644-005",20140605,138]
["Misc_Con","Protective Polymer Coating at Snowmobile Trail Crossings","Use this item on bridge crossings only. See Materials Engineer for applicable use.\r\n","ner-900-040",20110127,139]
["Misc_Con","Protective Thermoplastic Coating at Snowmobile Crossing","Do not use this item unless approved by the Project Manager and Region Bike/Ped Coordinator. Use this item for roadway crossings.\r\n","ner-900-045",20161130,140]
["OSOW","Freight width restriction","If project is on the Freight Network coordinate with region freight engineer to see if this article needs to be added to the special provision.\r\n","ner-900-030",20150402,141]
["Pavement Marking","Removing Raised Pavement Markers","Use this article when there will be an overlay. Be sure to revise HMA Pavement Type to match what will be used for the overlay.\r\n","ner-646-030",20110303,142]
["Pavement Marking","Removing Raised Pavement Markers (when retrofitting dowels)","Use this article when retrofitting dowels or when there is no overlay. Coordinate with Pavement Engineer before using.\r\n","ner-646-035",20110208,143]
["Removals","Clearing & Grubbing","Use only if there are no emerald ash borer concerns. Contact Environmental Coordinator before using.\r\n","ner-201-005",20110127,144]
["Removals","Removing Old Structure with Minimal Debris",null,"ner-203-005",20110214,145]
["Removals","Removing Rumble Strips (ashpaltic shoulders)","Use when rumble strips are in asphaltic shoulders.\r\n","ner-203-010",20110214,146]
["Removals","Removing Rumble Strips (concrete shoulders)","Use when rumble strips are in concrete shoulders.\r\n","ner-203-015",20110214,147]
["Removals","Removing Cable Barrier",null,"ner-204-010",20110202,148]
["Removals","Removing Concrete Surface Milling",null,"ner-204-015",20110202,149]
["Removals","Removing Existing Underground Vault",null,"ner-204-020",20110202,150]
["Removals","Removing Fence","Use this item when salvaging fence for county or local municipality.\r\n","ner-204-025",20130507,151]
["Removals","Removing Guardrail","Use this to prohibit cutting of the guardrail and requires pick up by local municipality.\r\n","ner-204-030",20110127,152]
["Removals","Removing Median Crossover",null,"ner-204-035",20110202,153]
["Removals","Milling and Removing Temporary Joint","This spec can be used to remove the notched wedge longitudinal joint prior to paving the second pass of upper layer of asphalt. Used when installing centerline rumble strips.\r\n","ner-465-005",20131125,154]
["Signing","Special Sign Post and V-Lok Channel","Communities are requesting use of these items. Contact Mike Frewerd to discuss use.\r\n","ner-634-005",20110207,155]
["Staking","Construction Staking Biofilter",null,"ner-650-005",20110207,156]
["Staking","Construction Staking Fence Layout","Contact Survey Coordinator before using.\r\n","ner-650-010",20110207,157]
["Staking","Construction Staking Noise Barrier",null,"ner-650-015",20110207,158]
["Staking","Construction Staking Railroad","Contact Railroad Coordinator before using.\r\n","ner-650-020",20110207,159]
["Staking","Construction Staking Survey (Project) ","Use this article for lump sum survey staking. Consult with NE Region prior to using. Standard staking bid items should be used on most projects.\r\n","ner-650-025",20140707,160]
["Staking","Construction Staking Temporary Causeway",null,"ner-650-030",20110207,161]
["Staking","Construction Staking Water Main",null,"ner-650-035",20110207,162]
["Structures","Wall Concrete Panel Mechanically Stabilized Earth LRFD QMP Pilot","NE Region pilot spec. Coordinate with Materials Section prior to using.\r\n","ner-504-015",20131121,163]
["Structures","Wall Wire Faced Mechanically Stabilized Earth LRFD QMP Pilot","NE Region pilot spec. Coordinate with Materials Section prior to using.\r\n","ner-504-020",20131121,164]
["Survey","Height Modernization Stations","Contact Survey Coordinator.\r\n","ner-621-005",20110127,165]
["Survey","Survey Monument Coordination","Insert this provision in lieu of the landmark reference monument item 621.0100 when monuments are present on your project. Starting with 2014 construction projects the NE Region will tie off and install all survey monuments instead of the contractor or county surveyor. See NE Region survey coordinator if you have further questions.\r\n","ner-621-010",20140429,166]
["Traffic","Concrete Barrier Temporary Precast Anchored on Asphaltic Bridge Overlay","Use this item when pinning is required on bridge decks with an asphaltic overlay.\r\n","ner-603-005",20130507,167]
["Traffic","Concrete Barrier Temporary Precast Anchoring","Designer notes: Use this SPV when the design is dictating barrier is to be pinned. Do not use if the contractor has the option of constructing in a way that the barrier would not need to be pinned.\r\n","ner-603-010",20171206,168]
["Traffic","Glare Screens Temporary","Contact Traffic before using. Verify material versus PAL.\r\n","ner-603-015",20110202,169]
["Traffic","Parts and Training for HT 4-STrand Cable Guard TL-4",null,"ner-614-010",20090730,170]
["Traffic","Barricade Racks","Contact Traffic before using.\r\n","ner-643-005",20110201,171]
["Traffic","Clear Zone","Portions of the traffic guidance refer to work that can or cannot take place within the clear zone. The values should be reviewed by the designer based on the specific project.\r\n","ner-643-010",20130507,172]
["Traffic","Expressway - Freeway Traffic Control Review Meeting",null,"ner-643-015",null,173]
["Traffic","Lambeau Lane Rental","Editor: If you don’t have another project in the vicinity of this project, the following paragraph may be deleted:\r\n","ner-643-020",20170706,174]
["Traffic","Opening Roundabout",null,"ner-643-025",20130507,175]
["Traffic","PCMS Cellular Communications",null,"ner-643-030",20111117,176]
["Traffic","Portable Changeable Message Signs - Message Prior Approval","Include this article whenever the contract contains bid item 643.1050 Traffic Control Signs PCMS.\r\n","ner-643-035",20151112,177]
["Traffic","Portable Intelligent Transportation System",null,"ner-643-040",null,178]
["Traffic","Portable Speed Trailers","Coordinate with Traffic Section for appropriate contact. Insert in TRAFFIC article\r\n","ner-643-045",20110630,179]
["Traffic","Protection of Bridge Pier Columns","Use one of these paragraphs to protect bridge piers or roadside hazards in general (consisting of parapets, piers, and other hazards).\r\n","ner-643-050",20130507,180]
["Traffic","Temporary Regulatory Speed Limit Reduction 65 to 55 mph","Regulatory speed limit reduction from 65 mph to 55 mph is warranted if any of the following conditions apply:\r\n    1. Lane(s) closed and workers are present and active in close proximity to the roadway.\r\n    2. Lane(s) narrowed to less than 12 feet and adjacent shoulder width is reduced.\r\n    3. Traffic is shifted partly or completely onto a shoulder and/or temporary pavement and shoulder width is reduced. \r\nAdd the below text to the Traffic Article in the projects Special Provisions. Miscellaneous quantities should include items and quantities for the additional signing for temporary regulatory speed zone modification as needed. See S.D.D. 15 D 3-1 and/or S.D.D. 15 D 12-2 for temporary speed limit sign placement details that need to be identified in the projects PS&E documents. Include traffic control detail titled Lane Closure - Regulatory Speed Reduction (two options available with or without barrier). Temporary regulatory speed limit signs shall be double marked (inside and outside shoulder) beyond entrance ramp acceleration lanes and other locations that traffic is allowed to enter project limits.\r\n","ner-643-055",20150402,181]
["Traffic","Terminal 4-Strand HT Cable Guard",null,"ner-643-060",20090730,182]
["Traffic","Traffic Control",null,"ner-643-065",20091119,183]
["Traffic","Truck Mounted Attenuator","Hours per contract should be determined in coordination with the Region PM and Region Traffic Section. Article includes options with Operator and without Operator.\r\n","ner-643-070",20110202,184]
["Traffic","Vertical Impact Recovery Panel and Base","Verify meets current MUTCD standards.\r\n","ner-643-080",20140424,185]
["Water & Sanitary","Adjusting Sanitary Manhole Covers",null,"ner-900-005",20150430,186]
["Water & Sanitary","Adjusting Water Service Curb Stop",null,"ner-900-010",20110207,187]
["Water & Sanitary","Adjusting Water Valve Box",null,"ner-900-015",20120206,188]
["Water & Sanitary","External Chimney Seals",null,"ner-900-020",20110207,189]
["Water & Sanitary","Frame and Chimney Seals",null,"ner-900-025",20110207,190]
["Water & Sanitary","Insulation Board (Inch)",null,"ner-900-035",20110207,191]
["Water & Sanitary","Removing Fire Hydrant",null,"ner-900-050",20110207,192]
["Water & Sanitary","Rock Excavation for Water Main",null,"ner-900-055",20110207,193]